fUSD/lending_fUSD_20250818
["ID","MTS","AMOUNT","RATE_DAILY","PERIOD"]
[380065593,1755526968746,-835.19,0.00030136,120]
[380065594,1755526968791,-835.19,0.00030136,120]
[380065595,1755526968835,-835.19,0.00030136,120]
[380065596,1755526968877,-835.19,0.00030136,120]
[380065597,1755526968921,-2909.53,0.00030136,120]
[380065598,1755526968968,-835.19,0.00030136,120]
[380065599,1755526969014,-835.19,0.00030136,120]
[380065600,1755526969058,-1142.47,0.00030136,120]
[380065601,1755526969100,-400.0,0.00030136,120]
[380065602,1755526969148,-835.19,0.00030136,120]
[380065603,1755526969196,-835.19,0.00030136,120]
[380065604,1755526969245,-835.19,0.00030136,120]
[380065605,1755526969290,-400.0,0.00030136,120]
[380065606,1755526969336,-835.19,0.00030136,120]
[380065607,1755526969380,-400.0,0.00030136,120]
[380065608,1755526969424,-835.19,0.00030136,120]
[380065609,1755526969469,-508.97,0.00030136,120]
[380065610,1755526969514,-835.19,0.00030136,120]
[380065611,1755526969558,-835.19,0.00030136,120]
[380065612,1755526969601,-835.19,0.00030136,120]
[380065613,1755526969646,-400.0,0.00030136,120]
[380065614,1755526969690,-835.19,0.00030136,120]
[380065615,1755526969733,-835.23217041,0.00030136,120]
[380065616,1755526969775,-4470.82,0.00030136,120]
[380065617,1755526969817,-400.0,0.00030136,120]
[380065618,1755526969859,-3334.61,0.00030136,120]
[380065619,1755526969901,-3139.54,0.00030136,120]
[380065620,1755526969942,-3753.62,0.00030136,120]
[380065621,1755526969984,-400.0,0.00030136,120]
[380065622,1755526970027,-400.44538427,0.00030136,120]
[380065623,1755526970077,-400.0,0.00030136,120]
[380065624,1755526970123,-531.98,0.00030136,120]
[380065625,1755526970164,-400.0,0.00030136,120]
[380065626,1755526970207,-400.0,0.00030136,120]
[380065627,1755526970251,-2756.56,0.00030136,120]
[380065628,1755526970292,-1809.17,0.00030136,120]
[380065629,1755526970334,-400.0,0.00030136,120]
[380065630,1755526970375,-400.0,0.00030136,120]
[380065631,1755526970416,-400.0,0.00030136,120]
[380065632,1755526970458,-400.0,0.00030136,120]
[380065633,1755526970501,-1803.64,0.00030136,120]
[380065634,1755526970544,-400.0,0.00030136,120]
[380065635,1755526970587,-400.0,0.00030136,120]
[380065636,1755526970629,-1100.07,0.00030136,120]
[380065637,1755526970673,-1468.09,0.00030136,120]
[380065638,1755526970715,-2657.25,0.00030136,120]
[380065639,1755526970760,-3953.24,0.00030136,120]
[380065640,1755526970804,-400.0,0.00030136,120]
[380065641,1755526970847,-4187.7,0.00030136,120]
[380065642,1755526970889,-769.94,0.00030136,120]
[380065643,1755526970935,-400.0,0.00030136,120]
[380065644,1755526970976,-400.0,0.00030136,120]
[380065645,1755526971020,-400.0,0.00030136,120]
[380065646,1755526971064,-1009.16,0.00030136,120]
[380065647,1755526971107,-401.88411405,0.00030136,120]
[380065648,1755526971149,-400.0,0.00030136,120]
[380065649,1755526971193,-415.94,0.00030136,120]
[380065650,1755526971237,-3284.57,0.00030136,120]
[380065651,1755526971281,-443.01,0.00030136,120]
[380065652,1755526971325,-400.0,0.00030136,120]
[380065653,1755526971371,-400.0,0.00030136,120]
[380065654,1755526971415,-589.34,0.00030136,120]
[380065655,1755526971458,-1283.41,0.00030136,120]
[380065656,1755526971502,-641.91,0.00030136,120]
[380065657,1755526971544,-2537.89,0.00030136,120]
[380065658,1755526971588,-2011.92,0.00030136,120]
[380065659,1755526971628,-1784.63,0.00030136,120]
[380065660,1755526971671,-448.33,0.00030136,120]
[380065661,1755526971713,-400.0,0.00030136,120]
[380065662,1755526971760,-400.0,0.00030136,120]
[380065663,1755526971802,-400.0,0.00030136,120]
[380065664,1755526971843,-400.0,0.00030136,120]
[380065665,1755526971883,-400.0,0.00030136,120]
[380065666,1755526971925,-4133.72,0.00030136,120]
[380065667,1755526971971,-400.0,0.00030136,120]
[380065668,1755526972013,-400.0,0.00030136,120]
[380065669,1755526972055,-1792.08,0.00030136,120]
[380065670,1755526972099,-408.33,0.00030136,120]
[380065671,1755526972143,-1660.53,0.00030136,120]
[380065672,1755526972191,-1449.55,0.00030136,120]
[380065673,1755526972235,-1500.4,0.00030136,120]
[380065674,1755526972278,-400.0,0.00030136,120]
[380065675,1755526972331,-2284.52,0.00030136,120]
[380065676,1755526972380,-421.55,0.00030136,120]
[380065677,1755526972432,-400.4230745,0.00030136,120]
[380065678,1755526972475,-1597.89,0.00030136,120]
[380065679,1755526972516,-487.81,0.00030136,120]
[380065680,1755526972556,-1130.07,0.00030136,120]
[380065681,1755526972600,-400.0,0.00030136,120]
[380065682,1755526972641,-400.0,0.00030136,120]
[380065683,1755526972683,-536.43,0.00030136,120]
[380065684,1755526972725,-4104.04,0.00030136,120]
[380065685,1755526972780,-734.91,0.00030136,120]
[380065686,1755526972823,-400.0,0.00030136,120]
[380065687,1755526972865,-842.85,0.00030136,120]
[380065688,1755526972906,-2127.47,0.00030136,120]
[380065689,1755526973194,-995.08,0.00030136,120]
[380065690,1755526973236,-4014.89,0.00030136,120]
[380065691,1755526973278,-400.0,0.00030136,120]
[380065692,1755526973321,-400.0,0.00030136,120]
[380065693,1755526973365,-400.0,0.00030136,120]
[380065694,1755526973407,-400.0,0.00030136,120]
[380065695,1755526973449,-4664.61,0.00030136,120]
[380065696,1755526973492,-404.2,0.00030136,120]
[380065697,1755526973535,-656.43,0.00030136,120]
[380065698,1755526973577,-400.0,0.00030136,120]
[380065699,1755526973619,-500.12,0.00030136,120]
[380065700,1755526973660,-480.98,0.00030136,120]
[380065701,1755526973701,-1454.23,0.00030136,120]
[380065702,1755526973742,-4146.95,0.00030136,120]
[380065703,1755526973784,-2139.33,0.00030136,120]
[380065704,1755526973827,-2145.88,0.00030136,120]
[380065705,1755526973869,-400.0,0.00030136,120]
[380065706,1755526973911,-1076.27,0.00030136,120]
[380065707,1755526973953,-400.0,0.00030136,120]
[380065708,1755526973995,-400.0,0.00030136,120]
[380065709,1755526974041,-400.0,0.00030136,120]
[380065710,1755526974083,-790.55,0.00030136,120]
[380065711,1755526974127,-601.21,0.00030136,120]
[380065712,1755526974172,-1346.56,0.00030136,120]
[380065713,1755526974216,-400.0,0.00030136,120]
[380065714,1755526974269,-1005.37,0.00030136,120]
[380065715,1755526974315,-400.0,0.00030136,120]
[380065716,1755526974361,-852.96,0.00030136,120]
[380065717,1755526974407,-400.0,0.00030136,120]
[380065718,1755526974452,-400.0,0.00030136,120]
[380065719,1755526974497,-400.0,0.00030136,120]
[380065720,1755526974543,-1119.51,0.00030136,120]
[380065721,1755526974586,-2946.43,0.00030136,120]
[380065722,1755526974629,-3481.77,0.00030136,120]
[380065723,1755526974671,-1916.5,0.00030136,120]
[380065724,1755526974713,-300.0,0.00030136,120]
[380065725,1755526974757,-400.0,0.00030136,120]
[380065726,1755526974800,-363.42131767,0.00030136,120]
[380065727,1755526974844,-3179.21,0.00030136,120]
[380065728,1755526974886,-2677.02,0.00030136,120]
[380065729,1755526974930,-1113.13,0.00030136,120]
[380065730,1755526974975,-400.0,0.00030136,120]
[380065731,1755526975024,-949.98,0.00030136,120]
[380065732,1755526975068,-402.83,0.00030136,120]
[380065733,1755526975114,-402.03193063,0.00030136,120]
[380065734,1755526975158,-400.0,0.00030136,120]
[380065735,1755526975202,-400.0,0.00030136,120]
[380065736,1755526975246,-400.0,0.00030136,120]
[380065737,1755526975293,-2787.68,0.00030136,120]
[380065738,1755526975341,-599.94,0.00030136,120]
[380065739,1755526975387,-400.0,0.00030136,120]
[380065740,1755526975433,-696.22,0.00030136,120]
[380065741,1755526975478,-522.80663216,0.00030136,120]
[380065742,1755526975524,-3089.25,0.00030136,120]
[380065743,1755526975583,-400.0,0.00030136,120]
[380065744,1755526975629,-2079.77,0.00030136,120]
[380065745,1755526975675,-400.0,0.00030136,120]
[380065746,1755526975719,-2657.31,0.00030136,120]
[380065747,1755526975763,-3985.5,0.00030136,120]
[380065748,1755526975807,-400.0,0.00030136,120]
[380065749,1755526975851,-400.0,0.00030136,120]
[380065750,1755526975895,-831.08,0.00030136,120]
[380065751,1755526975945,-400.0,0.00030136,120]
[380065752,1755526975990,-1167.05,0.00030136,120]
[380065753,1755526976038,-3265.91,0.00030136,120]
[380065754,1755526976090,-400.0,0.00030136,120]
[380065755,1755526976143,-612.97,0.00030136,120]
[380065756,1755526976189,-400.0,0.00030136,120]
[380065757,1755526976235,-897.95,0.00030136,120]
[380065758,1755526976281,-400.0,0.00030136,120]
[380065759,1755526976326,-721.97,0.00030136,120]
[380065760,1755526976372,-2744.67,0.00030136,120]
[380065761,1755526976417,-400.0,0.00030136,120]
[380065762,1755526976463,-400.0,0.00030136,120]
[380065763,1755526976507,-2718.74,0.00030136,120]
[380065764,1755526976551,-2443.93,0.00030136,120]
[380065765,1755526976595,-400.79983005,0.00030136,120]
[380065766,1755526976640,-737.82,0.00030136,120]
[380065767,1755526976686,-1600.81,0.00030136,120]
[380065768,1755526976731,-448.61464618,0.00030136,120]
[380065769,1755526976779,-400.0,0.00030136,120]
[380065770,1755526976822,-2431.95,0.00030136,120]
[380065771,1755526976866,-1699.84,0.00030136,120]
[380065772,1755526976909,-400.0,0.00030136,120]
[380065773,1755526976954,-400.0,0.00030136,120]
[380065774,1755526976996,-2420.18,0.00030136,120]
[380065775,1755526977041,-703.88,0.00030136,120]
[380065776,1755526977086,-400.0,0.00030136,120]
[380065777,1755526977131,-2322.13,0.00030136,120]
[380065778,1755526977176,-400.0,0.00030136,120]
[380065779,1755526977221,-1163.25,0.00030136,120]
[380065780,1755526977266,-591.74,0.00030136,120]
[380065781,1755526977310,-401.73921179,0.00030136,120]
[380065782,1755526977358,-401.24693405,0.00030136,120]
[380065783,1755526977402,-400.0,0.00030136,120]
[380065784,1755526977826,-400.0,0.00030136,120]
[380065785,1755526977913,-1399.33,0.00030136,120]
[380065786,1755526977956,-3378.98,0.00030136,120]
[380065787,1755526977997,-1399.33,0.00030136,120]
[380065788,1755526978057,-1399.33,0.00030136,120]
[380065789,1755526978106,-1399.33,0.00030136,120]
[380065790,1755526978148,-1399.33,0.00030136,120]
[380065791,1755526978190,-1399.33,0.00030136,120]
[380065792,1755526978234,-1399.33,0.00030136,120]
[380065793,1755526978276,-4298.36,0.00030136,120]
[380065794,1755526978319,-1399.33,0.00030136,120]
[380065795,1755526978362,-1510.1,0.00030136,120]
[380065796,1755526978405,-1399.33,0.00030136,120]
[380065797,1755526978447,-1399.33,0.00030136,120]
[380065798,1755526978487,-1399.33,0.00030136,120]
[380065799,1755526978531,-400.0,0.00030136,120]
[380065800,1755526978587,-1399.33,0.00030136,120]
[380065801,1755526978628,-1399.33,0.00030136,120]
[380065802,1755526978669,-1399.33,0.00030136,120]
[380065803,1755526978709,-949.63,0.00030136,120]
[380065804,1755526978749,-1399.33,0.00030136,120]
[380065805,1755526978791,-1664.62,0.00030136,120]
[380065806,1755526978831,-2582.24,0.00030136,120]
[380065807,1755526978875,-1399.33,0.00030136,120]
[380065808,1755526978917,-1399.33,0.00030136,120]
[380065809,1755526978963,-1399.33,0.00030136,120]
[380065810,1755526979008,-3313.71,0.00030136,120]
[380065811,1755526979053,-1399.33,0.00030136,120]
[380065812,1755526979105,-1399.33,0.00030136,120]
[380065813,1755526979150,-1399.33,0.00030136,120]
[380065814,1755526979194,-1399.33,0.00030136,120]
[380065815,1755526979239,-1399.33,0.00030136,120]
[380065816,1755526979284,-2234.18,0.00030136,120]
[380065817,1755526979329,-1276.32,0.00030136,120]
[380065818,1755526979381,-400.0,0.00030136,120]
[380065819,1755526979428,-1374.17,0.00030136,120]
[380065820,1755526979472,-546.28,0.00030136,120]
[380065821,1755526979517,-1399.42720484,0.00030136,120]
[380065822,1755526979559,-465.18,0.00030136,120]
[380065823,1755526979606,-400.0,0.00030136,120]
[380065824,1755526979650,-191.05546988,0.00030136,120]
[380065825,1755526979694,-400.0,0.00030136,120]
[380065826,1755526979739,-572.4,0.00030136,120]
[380065827,1755526979782,-807.62,0.00030136,120]
[380065828,1755526979824,-811.01,0.00030136,120]
[380065829,1755526979867,-400.0,0.00030136,120]
[380065830,1755526979911,-3189.2,0.00030136,120]
[380065831,1755526979954,-400.0,0.00030136,120]
[380065832,1755526979997,-400.0,0.00030136,120]
[380065833,1755526980044,-1990.34,0.00030136,120]
[380065834,1755526980090,-1470.52,0.00030136,120]
[380065835,1755526980142,-1395.18,0.00030136,120]
[380065836,1755526980189,-1470.52,0.00030136,120]
[380065837,1755526980237,-400.0,0.00030136,120]
[380065838,1755526980286,-400.0,0.00030136,120]
[380065839,1755526980333,-1470.52,0.00030136,120]
[380065840,1755526980379,-400.0,0.00030136,120]
[380065841,1755526980426,-1470.52,0.00030136,120]
[380065842,1755526980471,-2218.25,0.00030136,120]
[380065843,1755526980515,-1470.52,0.00030136,120]
[380065844,1755526980559,-1470.52,0.00030136,120]
[380065845,1755526980618,-1470.52,0.00030136,120]
[380065846,1755526980663,-1470.52,0.00030136,120]
[380065847,1755526980707,-1101.21,0.00030136,120]
[380065848,1755526980750,-1470.52,0.00030136,120]
[380065849,1755526980793,-1470.52,0.00030136,120]
[380065850,1755526980837,-1470.52,0.00030136,120]
[380065851,1755526980882,-1470.52,0.00030136,120]
[380065852,1755526980926,-1470.52,0.00030136,120]
[380065853,1755526980974,-1470.52,0.00030136,120]
[380065854,1755526981015,-1470.52,0.00030136,120]
[380065855,1755526981059,-1470.52,0.00030136,120]
[380065856,1755526981107,-1470.52,0.00030136,120]
[380065857,1755526981152,-1137.68,0.00030136,120]
[380065858,1755526981198,-1523.08,0.00030136,120]
[380065859,1755526981243,-1470.52,0.00030136,120]
[380065860,1755526981288,-1470.52,0.00030136,120]
[380065861,1755526981330,-1470.52,0.00030136,120]
[380065862,1755526981378,-1470.52,0.00030136,120]
[380065863,1755526981429,-1470.52,0.00030136,120]
[380065864,1755526981473,-1470.52,0.00030136,120]
[380065865,1755526981516,-1470.54778466,0.00030136,120]
[380065866,1755526981558,-2716.65,0.00030136,120]
[380065867,1755526981605,-3948.49,0.00030136,120]
[380065868,1755526981648,-6028.04,0.00030136,120]
[380065869,1755526981691,-695.82,0.00030136,120]
[380065870,1755526981733,-4019.11,0.00030136,120]
[380065871,1755526981776,-3483.45,0.00030136,120]
[380065872,1755526981822,-569.69,0.00030136,120]
[380065873,1755526981865,-1989.48,0.00030136,120]
[380065874,1755526981908,-400.0,0.00030136,120]
[380065875,1755526981952,-400.0,0.00030136,120]
[380065876,1755526981995,-1066.48,0.00030136,120]
[380065877,1755526982037,-400.0,0.00030136,120]
[380065878,1755526982079,-1554.39,0.00030136,120]
[380065879,1755526982122,-896.8,0.00030136,120]
[380065880,1755526982499,-631.63,0.00030136,120]
[380065881,1755526982542,-400.0,0.00030136,120]
[380065882,1755526982583,-2198.57,0.00030136,120]
[380065883,1755526982626,-748.18,0.00030136,120]
[380065884,1755526982668,-1104.14,0.00030136,120]
[380065885,1755526982710,-3629.57,0.00030136,120]
[380065886,1755526982751,-400.0,0.00030136,120]
[380065887,1755526982792,-400.0,0.00030136,120]
[380065888,1755526982837,-400.0,0.00030136,120]
[380065889,1755526982880,-400.0,0.00030136,120]
[380065890,1755526982922,-2074.66,0.00030136,120]
[380065891,1755526982968,-400.0,0.00030136,120]
[380065892,1755526983011,-400.0,0.00030136,120]
[380065893,1755526983264,-937.45,0.00030136,120]
[380065894,1755526983315,-400.0,0.00030136,120]
[380065895,1755526983367,-944.36,0.00030136,120]
[380065896,1755526983415,-686.72,0.00030136,120]
[380065897,1755526983462,-400.0,0.00030136,120]
[380065898,1755526983513,-400.0,0.00030136,120]
[380065899,1755526983560,-1287.84,0.00030136,120]
[380065900,1755526983611,-400.0,0.00030136,120]
[380065901,1755526983657,-2297.6,0.00030136,120]
[380065902,1755526983705,-4526.33,0.00030136,120]
[380065903,1755526983751,-1584.32,0.00030136,120]
[380065904,1755526983798,-400.0,0.00030136,120]
[380065905,1755526983844,-2719.59,0.00030136,120]
[380065906,1755526983897,-694.33,0.00030136,120]
[380065907,1755526983951,-400.0,0.00030136,120]
[380065908,1755526983995,-2383.29,0.00030136,120]
[380065909,1755526984048,-2639.05,0.00030136,120]
[380065910,1755526984100,-566.48,0.00030136,120]
[380065911,1755526984152,-400.0,0.00030136,120]
[380065912,1755526984199,-400.0,0.00030136,120]
[380065913,1755526984246,-400.0,0.00030136,120]
[380065914,1755526984292,-1211.42,0.00030136,120]
[380065915,1755526984337,-707.13,0.00030136,120]
[380065916,1755526984381,-400.0,0.00030136,120]
[380065917,1755526984425,-400.0,0.00030136,120]
[380065918,1755526984469,-400.0,0.00030136,120]
[380065919,1755526984515,-2427.6,0.00030136,120]
[380065920,1755526984560,-400.0,0.00030136,120]
[380065921,1755526984608,-400.0,0.00030136,120]
[380065922,1755526984652,-985.69,0.00030136,120]
[380065923,1755526984695,-400.0,0.00030136,120]
[380065924,1755526984737,-400.0,0.00030136,120]
[380065925,1755526984782,-400.0,0.00030136,120]
[380065926,1755526984829,-400.0,0.00030136,120]
[380065927,1755526984880,-1942.5,0.00030136,120]
[380065928,1755526984927,-1521.42,0.00030136,120]
[380065929,1755526984978,-400.0,0.00030136,120]
[380065930,1755526985020,-815.26,0.00030136,120]
[380065931,1755526985064,-400.0,0.00030136,120]
[380065932,1755526985112,-400.0,0.00030136,120]
[380065933,1755526985157,-1947.56,0.00030136,120]
[380065934,1755526985201,-2729.2,0.00030136,120]
[380065935,1755526985245,-466.76,0.00030136,120]
[380065936,1755526985288,-400.0,0.00030136,120]
[380065937,1755526985333,-618.17,0.00030136,120]
[380065938,1755526985377,-400.0,0.00030136,120]
[380065939,1755526985419,-400.0,0.00030136,120]
[380065940,1755526985459,-400.0,0.00030136,120]
[380065941,1755526985503,-2169.72,0.00030136,120]
[380065942,1755526985545,-4255.2,0.00030136,120]
[380065943,1755526985588,-1125.48,0.00030136,120]
[380065944,1755526985631,-434.15,0.00030136,120]
[380065945,1755526985672,-535.86009475,0.00030136,120]
[380065946,1755526985714,-400.0,0.00030136,120]
[380065947,1755526985755,-400.0,0.00030136,120]
[380065948,1755526985797,-400.0,0.00030136,120]
[380065949,1755526985838,-1685.94,0.00030136,120]
[380065950,1755526985882,-400.0,0.00030136,120]
[380065951,1755526985923,-829.44,0.00030136,120]
[380065952,1755526985967,-499.3,0.00030136,120]
[380065953,1755526986009,-400.0,0.00030136,120]
[380065954,1755526986054,-400.0,0.00030136,120]
[380065955,1755526986096,-400.0,0.00030136,120]
[380065956,1755526986139,-710.62,0.00030136,120]
[380065957,1755526986181,-497.17,0.00030136,120]
[380065958,1755526986224,-400.0,0.00030136,120]
[380065959,1755526986267,-455.98,0.00030136,120]
[380065960,1755526986310,-400.0,0.00030136,120]
[380065961,1755526986354,-411.5,0.00030136,120]
[380065962,1755526986398,-4293.83,0.00030136,120]
[380065963,1755526986441,-400.0,0.00030136,120]
[380065964,1755526986484,-949.59,0.00030136,120]
[380065965,1755526986529,-505.88,0.00030136,120]
[380065966,1755526986571,-550.64,0.00030136,120]
[380065967,1755526986610,-2753.72,0.00030136,120]
[380065968,1755526986648,-440.19,0.00030136,120]
[380065969,1755526986685,-855.03,0.00030136,120]
[380065970,1755526986722,-400.0,0.00030136,120]
[380065971,1755526986757,-2110.82,0.00030136,120]
[380065972,1755526986794,-400.0,0.00030136,120]
[380065973,1755526986831,-2424.57,0.00030136,120]
[380065974,1755526986867,-2962.94,0.00030136,120]
[380065975,1755526986903,-408.9,0.00030136,120]
[380065976,1755526987212,-400.0,0.00030136,120]
[380065977,1755526987253,-5029.69,0.00030136,120]
[380065978,1755526987295,-4082.79,0.00030136,120]
[380065979,1755526987337,-400.0,0.00030136,120]
[380065980,1755526987384,-4233.09,0.00030136,120]
[380065981,1755526987425,-400.0,0.00030136,120]
[380065982,1755526987465,-400.0,0.00030136,120]
[380065983,1755526987502,-1600.21,0.00030136,120]
[380065984,1755526987540,-5160.88,0.00030136,120]
[380065985,1755526987580,-400.0,0.00030136,120]
[380065986,1755526987619,-400.0,0.00030136,120]
[380065987,1755526987656,-7362.34,0.00030136,120]
[380065988,1755526987692,-400.0,0.00030136,120]
[380065989,1755526987727,-2413.44,0.00030136,120]
[380065990,1755526987764,-4871.68,0.00030136,120]
[380065991,1755526987799,-400.0,0.00030136,120]
[380065992,1755526987835,-400.0,0.00030136,120]
[380065993,1755526987872,-744.58,0.00030136,120]
[380065994,1755526987909,-400.0,0.00030136,120]
[380065995,1755526987946,-402.8,0.00030136,120]
[380065996,1755526987982,-4064.22,0.00030136,120]
[380065997,1755526988018,-400.0,0.00030136,120]
[380065998,1755526988056,-400.0,0.00030136,120]
[380065999,1755526988095,-400.0,0.00030136,120]
[380066000,1755526988136,-10869.76,0.00030136,120]
[380066001,1755526988175,-400.0,0.00030136,120]
[380066002,1755526988214,-3650.79,0.00030136,120]
[380066003,1755526988254,-250.0,0.00030136,120]
[380066004,1755526988294,-1044.24,0.00030136,120]
[380066005,1755526988335,-400.0,0.00030136,120]
[380066006,1755526988375,-3989.9,0.00030136,120]
[380066007,1755526988415,-774.3,0.00030136,120]
[380066008,1755526988456,-400.0,0.00030136,120]
[380066009,1755526988494,-1650.15,0.00030136,120]
[380066010,1755526988530,-400.0,0.00030136,120]
[380066011,1755526988568,-400.0,0.00030136,120]
[380066012,1755526988606,-8649.44,0.00030136,120]
[380066013,1755526988642,-468.18,0.00030136,120]
[380066014,1755526988679,-400.0,0.00030136,120]
[380066015,1755526988716,-400.0,0.00030136,120]
[380066016,1755526988754,-400.0,0.00030136,120]
[380066017,1755526988791,-400.0,0.00030136,120]
[380066018,1755526988832,-614.85,0.00030136,120]
[380066019,1755526988870,-2022.53,0.00030136,120]
[380066020,1755526988908,-1712.54,0.00030136,120]
[380066021,1755526988945,-744.81,0.00030136,120]
[380066022,1755526988984,-13229.99,0.00030136,120]
[380066023,1755526989022,-400.0,0.00030136,120]
[380066024,1755526989060,-400.0,0.00030136,120]
[380066025,1755526989099,-4066.17,0.00030136,120]
[380066026,1755526989139,-400.0,0.00030136,120]
[380066027,1755526989180,-635.81,0.00030136,120]
[380066028,1755526989222,-400.0,0.00030136,120]
[380066029,1755526989266,-638.15,0.00030136,120]
[380066030,1755526989315,-2589.74,0.00030136,120]
[380066031,1755526989373,-400.0,0.00030136,120]
[380066032,1755526989418,-400.0,0.00030136,120]
[380066033,1755526989460,-480.71,0.00030136,120]
[380066034,1755526989501,-926.32,0.00030136,120]
[380066035,1755526989541,-401.42,0.00030136,120]
[380066036,1755526989584,-2278.86,0.00030136,120]
[380066037,1755526989627,-400.0,0.00030136,120]
[380066038,1755526989669,-847.42,0.00030136,120]
[380066039,1755526989712,-400.0,0.00030136,120]
[380066040,1755526989755,-4091.93,0.00030136,120]
[380066041,1755526989799,-5450.95,0.00030136,120]
[380066042,1755526989837,-2612.46,0.00030136,120]
[380066043,1755526989879,-1413.64,0.00030136,120]
[380066044,1755526989917,-400.0,0.00030136,120]
[380066045,1755526989957,-500.0,0.00030136,120]
[380066046,1755526989995,-400.0,0.00030136,120]
[380066047,1755526990032,-500.0,0.00030136,120]
[380066048,1755526990071,-3026.81,0.00030136,120]
[380066049,1755526990117,-219.58,0.00030136,120]
[380066050,1755526990161,-400.0,0.00030136,120]
[380066051,1755526990202,-827.84,0.00030136,120]
[380066052,1755526990245,-4541.61,0.00030136,120]
[380066053,1755526990288,-13026.06,0.00030136,120]
[380066054,1755526990330,-6001.78,0.00030136,120]
[380066055,1755526990376,-8448.36,0.00030136,120]
[380066056,1755526990419,-400.0,0.00030136,120]
[380066057,1755526990463,-400.0,0.00030136,120]
[380066058,1755526990507,-866.36,0.00030136,120]
[380066059,1755526990553,-2079.77,0.00030136,120]
[380066060,1755526990594,-400.0,0.00030136,120]
[380066061,1755526990637,-2810.54,0.00030136,120]
[380066062,1755526990678,-493.45,0.00030136,120]
[380066063,1755526990719,-2698.1,0.00030136,120]
[380066064,1755526990757,-9174.92,0.00030136,120]
[380066065,1755526990797,-1426.38,0.00030136,120]
[380066066,1755526990837,-400.0,0.00030136,120]
[380066067,1755526990880,-7389.02,0.00030136,120]
[380066068,1755526990921,-400.0,0.00030136,120]
[380066069,1755526990965,-4151.65,0.00030136,120]
[380066070,1755526991007,-1620.77,0.00030136,120]
[380066071,1755526991349,-400.0,0.00030136,120]
[380066072,1755526991396,-774.06,0.00030136,120]
[380066073,1755526991441,-400.0,0.00030136,120]
[380066074,1755526991486,-502.81,0.00030136,120]
[380066075,1755526991532,-400.0,0.00030136,120]
[380066076,1755526991577,-728.11,0.00030136,120]
[380066077,1755526991619,-1014.32,0.00030136,120]
[380066078,1755526991660,-7531.79,0.00030136,120]
[380066079,1755526991699,-400.0,0.00030136,120]
[380066080,1755526991736,-400.0,0.00030136,120]
[380066081,1755526991774,-650.05,0.00030136,120]
[380066082,1755526991815,-2656.19,0.00030136,120]
[380066083,1755526991855,-729.93,0.00030136,120]
[380066084,1755526991907,-3582.13,0.00030136,120]
[380066085,1755526991954,-1520.65,0.00030136,120]
[380066086,1755526991999,-655.94,0.00030136,120]
[380066087,1755526992068,-1516.95,0.00030136,120]
[380066088,1755526992113,-922.61,0.00030136,120]
[380066089,1755526992165,-215.66801249,0.00030136,120]
[380066090,1755526992209,-400.0,0.00030136,120]
[380066091,1755526992255,-400.0,0.00030136,120]
[380066092,1755526992300,-1349.11,0.00030136,120]